fUST/lending_fUST_20260214
["ID","MTS","AMOUNT","RATE_DAILY","PERIOD"]
[405347885,1771036870026,500.0,0.00021918,2]
[405347888,1771037072879,150.0,0.00030137,120]
[405347889,1771037103446,500.0,0.00021918,2]
[405347890,1771037138332,150.0,0.00030137,120]
[405347891,1771037204269,1000.0,0.00023,2]
[405347892,1771037308924,1000.0,0.00023,2]
[405347893,1771037321614,1000.0,0.00023,2]
[405347894,1771037362214,500.0,0.00030137,120]
[405347895,1771037373121,150.0,0.00030137,120]
[405347921,1771037432255,-502.22513354,0.00023288,2]
[405347923,1771037432264,-213.29290992,0.00023291,2]
[405347925,1771037432275,-197.26,0.000233,7]
[405347927,1771037432284,-526.33558134,0.00024998,2]
[405347929,1771037432294,-192.50398772,0.0002526,2]
[405347931,1771037432303,-192.6964917,0.0002526,2]
[405347933,1771037432315,-287.390474,0.00026425,2]
[405347935,1771037432326,-1200.0,0.00026571,2]
[405347937,1771037432338,-500.0,0.00026572,2]
[405347940,1771037432351,-500.0,0.00026572,2]
[405347942,1771037432363,-500.0,0.00026572,2]
[405347944,1771037432375,-323.99864935,0.00026572,2]
[405347946,1771037432386,-500.0,0.00026572,2]
[405347948,1771037432396,-500.0,0.00026572,2]
[405347951,1771037432407,-500.0,0.00026572,2]
[405347954,1771037432419,-500.0,0.00026572,2]
[405347956,1771037432430,-500.0,0.00026572,2]
[405347958,1771037432441,-353.01676246,0.00026572,2]
[405347961,1771037432454,-321.17387407,0.00026572,2]
[405347963,1771037432468,-128.31213682,0.00026572,2]
[405347965,1771037432479,-500.0,0.00026572,2]
[405347968,1771037432491,-449.7770246,0.00026572,2]
[405348149,1771037438489,-50.2229754,0.00026572,2]
[405348150,1771037438500,-413.74519054,0.00026572,2]
[405348151,1771037438510,-2844.40681487,0.00026572,2]
[405348152,1771037438525,-183.4648545,0.00026744,2]
[405348153,1771037438535,-43.33374507,0.00027,7]
[405348175,1771037445629,-128.66625493,0.00027,7]
[405348176,1771037445641,-157.659883,0.0002715,2]
[405348177,1771037445653,-173.550596,0.0002715,2]
[405348178,1771037445663,-14.83285402,0.0002715,2]
[405348179,1771037445676,-658.83621924,0.0002715,2]
[405348180,1771037445688,-2099.0,0.0002715,2]
[405348183,1771037446360,-3227.46198402,0.0002715,2]
[405348184,1771037450271,1000.0,0.00023,2]
[405348185,1771037458611,1000.0,0.00023,2]
[405348186,1771037554371,1000.0,0.00023,2]
[405348187,1771037642733,5000.0,0.00023,2]
[405348188,1771037691311,1000.0,0.00023,2]
[405348189,1771037702655,1000.0,0.00023,2]
[405348190,1771037711262,1000.0,0.00023,2]
[405348191,1771037726345,6000.0,0.000148,2]
[405348193,1771038047274,160.0,0.00023,2]
[405348194,1771038066657,501.22133182,0.00021918,2]
[405348195,1771038078034,248.06,0.00023,2]
[405348196,1771038123454,258.36558411,0.00013273,2]
[405348197,1771038138435,-1200.0,0.00023029,2]
[405348198,1771038138465,-268.19391006,0.00023029,2]
[405348199,1771038138492,-300.0,0.00023029,2]
[405348200,1771038138551,-1340.37577868,0.0002303,2]
[405348201,1771038276173,8659.62422132,0.00022569,2]
[405348202,1771038326556,10000.0,0.00022569,2]
[405348220,1771038632393,-500.0,0.00023029,2]
[405348221,1771038632402,-150.0,0.00023029,2]
[405348223,1771038632412,-500.0,0.00023499,2]
[405348224,1771038632422,-177.0,0.00025029,2]
[405348225,1771038632431,-347.101192,0.00025726,2]
[405348226,1771038632441,-160.0,0.000259,2]
[405348227,1771038632450,-268.19391006,0.00025933,2]
[405348228,1771038632459,-300.0,0.00025933,2]
[405348229,1771038632468,-1200.0,0.00025933,2]
[405348230,1771038632477,-1915.41832412,0.00025934,2]
[405348250,1771038638680,-5529.96757958,0.00025934,2]
[405348251,1771038638689,-948.0215584,0.00025934,2]
[405348252,1771038638698,-1359.9938836,0.00025934,2]
[405348253,1771038638708,-201.26466443,0.00026557,2]
[405348254,1771038638717,-361.91411958,0.00026557,2]
[405348255,1771038638726,-258.35402771,0.00027,7]
[405348256,1771038638735,-160.0,0.00027,7]
[405348257,1771038638744,-173.0,0.00027,7]
[405348258,1771038638753,-231.0,0.00027029,2]
[405348259,1771038638762,-255.0,0.0002715,2]
[405348260,1771038638772,-500.0,0.00027413,2]
[405348261,1771038638781,-3611.9068467,0.00027414,2]
[405348263,1771038638790,-392.38378105,0.00027955,2]
[405348265,1771038638799,-447.99016831,0.00027955,2]
[405348267,1771038638809,-326.96166992,0.00027955,2]
[405348269,1771038638818,-400.0,0.00028067,2]
[405348271,1771038638827,-311.03460611,0.00028142,2]
[405348273,1771038638837,-271.0398045,0.00028156,2]
[405348275,1771038638846,-550.95223383,0.00028156,2]
[405348277,1771038638855,-1680.0,0.00028193,2]
[405348280,1771038638869,-204.77883398,0.0002838,7]
[405348282,1771038638878,-417.41659599,0.00029,10]
[405348283,1771038638885,-161.98329947,0.00029,10]
[405348286,1771038638893,-239.67122571,0.00029013,2]
[405348288,1771038638904,-359.92208305,0.00029065,2]
[405348290,1771038638912,-383.536958,0.00029114,2]
[405348292,1771038638920,-2984.52330834,0.00029352,2]
[405348294,1771038638929,-743.00766454,0.00029452,2]
[405348296,1771038638940,-520.32425843,0.00029725,7]
[405348298,1771038638948,-355.11265314,0.00029739,2]
[405348300,1771038638959,-179.23339999,0.00029808,36]
[405348302,1771038638966,-355.59664214,0.0003,2]
[405348304,1771038638973,-165.46,0.0003,5]
[405348306,1771038638982,-589.32212,0.0003,30]
[405348307,1771038638991,-500.0,0.00030136,5]
[405348309,1771038639001,-500.0,0.00030136,5]
[405348311,1771038639011,-540.74469334,0.00030136,5]
[405348314,1771038639020,-606.89578468,0.00030136,5]
[405348316,1771038639031,-500.0,0.00030136,5]
[405348317,1771038639039,-160.31492116,0.00030136,5]
[405348319,1771038639049,-156.75221798,0.00030136,5]
[405348322,1771038639059,-500.0,0.00030136,2]
[405348324,1771038639069,-500.0,0.00030136,5]
[405348326,1771038639078,-156.55620149,0.00030136,5]
[405348328,1771038639087,-500.0,0.00030136,5]
[405348330,1771038639096,-500.0,0.00030136,5]
[405348332,1771038639105,-500.0,0.00030136,5]
[405348334,1771038639115,-500.0,0.00030136,5]
[405348336,1771038639124,-500.0,0.00030136,5]
[405348337,1771038639134,-161.56059835,0.00030136,5]
[405348339,1771038639143,-322.75939322,0.00030136,5]
[405348342,1771038639152,-500.0,0.00030136,5]
[405348343,1771038639162,-948.71,0.00030136,5]
[405348346,1771038639171,-167.32281895,0.00030136,5]
[405348348,1771038639180,-182.34510582,0.00030136,5]
[405348349,1771038639190,-235.31703649,0.00030136,5]
[405348351,1771038639199,-500.0,0.00030136,5]
[405348354,1771038639209,-260.03572774,0.00030136,5]
[405348355,1771038639218,-553.27,0.00030136,5]
[405348357,1771038639227,-908.03,0.00030136,5]
[405348358,1771038639236,-1288.25,0.00030136,5]
[405348360,1771038639245,-268.67660007,0.00030136,5]
[405348361,1771038639255,-457.71526245,0.00030136,5]
[405348363,1771038639264,-308.20483225,0.00030136,5]
[405348365,1771038639274,-421.64544302,0.00030136,5]
[405348367,1771038639283,-500.0,0.00030136,5]
[405348369,1771038639292,-500.0,0.00030136,5]
[405348371,1771038639301,-295.46664137,0.00030136,5]
[405348373,1771038639310,-188.49528636,0.00030136,5]
[405348375,1771038639319,-500.0,0.00030136,5]
[405348377,1771038639328,-1007.85,0.00030136,5]
[405348379,1771038639337,-172.05738167,0.00030136,5]
[405348381,1771038639347,-168.76174195,0.00030136,5]
[405348383,1771038639356,-160.21008799,0.00030136,5]
[405348385,1771038639365,-500.0,0.00030136,5]
[405348387,1771038639374,-601.02,0.00030136,2]
[405348389,1771038639384,-564.5292152,0.00030136,5]
[405348391,1771038639394,-4196.58,0.00030136,5]
[405348393,1771038639403,-596.78080735,0.00030137,2]
[405348395,1771038639411,-198.92693578,0.00030137,2]
[405348397,1771038639421,-383.536958,0.00030339,2]
[405348399,1771038639430,-500.0,0.0003041,5]
[405348401,1771038639439,-500.0,0.0003041,5]
[405348403,1771038639447,-500.0,0.0003041,5]
[405348405,1771038639457,-500.0,0.0003041,2]
[405348407,1771038639466,-415.25151149,0.0003041,5]
[405348409,1771038639475,-500.0,0.0003041,5]
[405348411,1771038639484,-500.0,0.0003041,5]
[405348413,1771038639493,-500.0,0.0003041,5]
[405348415,1771038639503,-500.0,0.0003041,5]
[405348417,1771038639512,-181.10268747,0.0003041,5]
[405348419,1771038639522,-500.0,0.0003041,5]
[405348421,1771038639531,-948.71,0.0003041,5]
[405348424,1771038639549,-500.0,0.0003041,5]
[405348426,1771038639560,-553.27,0.0003041,5]
[405348428,1771038639569,-908.03,0.0003041,5]
[405348430,1771038639579,-1288.25,0.0003041,5]
[405348432,1771038639588,-500.0,0.0003041,5]
[405348434,1771038639598,-500.0,0.0003041,5]
[405348436,1771038639607,-500.0,0.0003041,5]
[405348438,1771038639617,-1007.85,0.0003041,5]
[405348440,1771038639627,-500.0,0.0003041,5]
[405348443,1771038639642,-601.02,0.0003041,2]
[405348445,1771038639651,-4196.58,0.0003041,5]
[405348447,1771038639660,-596.78080735,0.00030469,9]
[405348449,1771038639670,-500.0,0.00030684,5]
[405348451,1771038639679,-500.0,0.00030684,5]
[405348453,1771038639689,-500.0,0.00030684,5]
[405348455,1771038639698,-500.0,0.00030684,2]
[405348457,1771038639707,-500.0,0.00030684,5]
[405348459,1771038639717,-159.54579369,0.00030684,5]
[405348460,1771038639727,-500.0,0.00030684,5]
[405348461,1771038639736,-500.0,0.00030684,5]
[405348462,1771038639745,-500.0,0.00030684,5]
[405348463,1771038639755,-948.71,0.00030684,5]
[405348464,1771038639764,-172.44367854,0.00030684,5]
[405348465,1771038639774,-553.27,0.00030684,5]
[405348466,1771038639787,-908.03,0.00030684,5]
[405348467,1771038639796,-1288.25,0.00030684,5]
[405348468,1771038639806,-506.2491458,0.00030684,5]
[405348469,1771038639816,-500.0,0.00030684,5]
[405348470,1771038639826,-500.0,0.00030684,5]
[405348471,1771038639835,-1007.85,0.00030684,5]
[405348472,1771038639845,-320.69344724,0.00030684,5]
[405348473,1771038639857,-601.02,0.00030684,2]
[405348474,1771038639868,-4196.58,0.00030684,5]
[405348475,1771038639877,-596.78080735,0.00030801,17]
[405348476,1771038639887,-2984.52330832,0.00030859,2]
[405348477,1771038639898,-401.0,0.00030872,3]
[405348478,1771038639908,-544.0,0.00030883,30]
[405348479,1771038639918,-761.0,0.00030883,30]
[405348480,1771038639930,-362.0,0.00030883,30]
[405348481,1771038639940,-585.48096693,0.00030948,10]
[405348482,1771038639955,-141.10903307,0.00030948,10]
[405348483,1771038639965,-1161.66721887,0.00030948,2]
[405348484,1771038639974,-500.0,0.00030958,5]
[405348485,1771038639984,-500.0,0.00030958,5]
[405348486,1771038639993,-500.0,0.00030958,5]
[405348487,1771038640003,-500.0,0.00030958,2]
[405348488,1771038640012,-510.3247,0.00030958,2]
[405348489,1771038640021,-500.0,0.00030958,5]
[405348490,1771038640031,-61.57554522,0.00030958,2]
[405348500,1771038646539,-448.74915478,0.00030958,2]
[405348501,1771038646548,-500.0,0.00030958,5]
[405348502,1771038646558,-500.0,0.00030958,5]
[405348503,1771038646567,-500.0,0.00030958,5]
[405348504,1771038646577,-908.33545986,0.00030958,5]
[405348509,1771039706473,5380.78840281,0.00017,2]
[405348532,1771039831673,-150.0,0.00025291,2]
[405348534,1771039831683,-177.0,0.00027291,2]
[405348536,1771039831692,-881.607442,0.00028,5]
[405348538,1771039831701,-287.390474,0.00028569,2]
[405348540,1771039831711,-164.28527551,0.00029065,7]
[405348542,1771039831720,-429.17938744,0.00029222,2]
[405348544,1771039831729,-204.0,0.00029291,2]
[405348546,1771039831738,-168.0,0.00029433,2]
[405348549,1771039831747,-192.78233632,0.00029765,2]
[405348550,1771039831756,-347.00820537,0.00029765,2]
[405348552,1771039831766,-1889.01460094,0.00029964,2]
[405348554,1771039831775,-150.0,0.0003,7]
[405348556,1771039831784,-400.0,0.00030135,2]
[405348558,1771039831793,-500.0,0.00030136,5]
[405348561,1771039831803,-500.0,0.00030136,2]
[405348562,1771039831812,-165.2476181,0.00030137,2]
[405348565,1771039831821,-500.0,0.00030408,5]
[405348566,1771039831830,-525.89,0.00030408,2]
[405348568,1771039831840,-3672.01,0.00030408,5]
[405348570,1771039831850,-500.0,0.00030409,5]
[405348572,1771039831859,-543.06257534,0.00030409,5]
[405348574,1771039831869,-301.94360093,0.00030409,2]
[405348576,1771039831878,-160.9787305,0.00030409,5]
[405348578,1771039831887,-500.0,0.00030409,5]
[405348580,1771039831896,-500.0,0.00030409,5]
[405348582,1771039831905,-792.28,0.00030409,5]
[405348584,1771039831914,-500.0,0.00030409,5]
[405348586,1771039831923,-1127.21,0.00030409,5]
[405348588,1771039831933,-794.53,0.00030409,5]
[405348590,1771039831942,-500.0,0.00030409,5]
[405348592,1771039831952,-881.87,0.00030409,5]
[405348594,1771039831960,-151.0,0.0003041,7]
[405348596,1771039831970,-500.0,0.0003041,5]
[405348598,1771039831979,-500.0,0.0003041,2]
[405348600,1771039831988,-2433.88059607,0.00030583,2]
[405348602,1771039832003,-326.78821556,0.00030583,2]
[405348604,1771039832012,-500.0,0.00030682,5]
[405348606,1771039832021,-525.89,0.00030682,2]
[405348608,1771039832030,-396.30572574,0.00030682,5]
[405348610,1771039832040,-392.54,0.00030682,5]
[405348660,1771039837778,-1322.92642105,0.00030682,5]
[405348662,1771039839922,-1560.23785321,0.00030682,5]
[405348663,1771039839931,-500.0,0.00030683,5]
[405348664,1771039839941,-500.0,0.00030683,5]
[405348665,1771039839950,-500.0,0.00030683,5]
[405348666,1771039839959,-792.28,0.00030683,5]
[405348667,1771039839969,-500.0,0.00030683,5]
[405348668,1771039839978,-1127.21,0.00030683,5]
[405348669,1771039839987,-794.53,0.00030683,5]
[405348670,1771039839997,-500.0,0.00030683,5]
[405348671,1771039840006,-881.87,0.00030683,5]
[405348672,1771039840015,-151.0,0.00030684,7]
[405348673,1771039840025,-500.0,0.00030684,5]
[405348674,1771039840035,-500.0,0.00030684,2]
[405348675,1771039840044,-4858.8514595,0.00030707,2]
[405348676,1771039840053,-378.693751,0.00030707,2]
[405348677,1771039840063,-151.0,0.00030707,7]
[405348678,1771039840072,-2031.974086,0.00030707,2]
[405348679,1771039840081,-500.0,0.00030956,5]
[405348680,1771039840091,-525.89,0.00030956,2]
[405348681,1771039840100,-3672.01,0.00030956,5]
[405348682,1771039840110,-235.49232688,0.00030957,5]
[405348683,1771039840119,-500.0,0.00030957,5]
[405348684,1771039840128,-500.0,0.00030957,5]
[405348685,1771039840137,-792.28,0.00030957,5]
[405348686,1771039840147,-500.0,0.00030957,5]
[405348687,1771039840160,-1127.21,0.00030957,5]
[405348688,1771039840169,-794.53,0.00030957,5]
[405348689,1771039840178,-500.0,0.00030957,5]
[405348690,1771039840187,-881.87,0.00030957,5]
[405348691,1771039840198,-156.701831,0.00030958,7]
[405348692,1771039840207,-500.0,0.00030958,5]
[405348693,1771039840217,-500.0,0.00030958,2]
[405348694,1771039840227,-233.22335316,0.0003099,2]
[405348695,1771039840236,-168.0,0.00031025,2]
[405348696,1771039840246,-596.78080735,0.00031133,25]
[405348697,1771039840255,-500.0,0.0003123,5]
[405348698,1771039840264,-525.89,0.0003123,2]
[405348699,1771039840274,-3672.01,0.0003123,5]
[405348700,1771039840283,-500.0,0.00031231,5]
[405348701,1771039840293,-500.0,0.00031231,5]
[405348702,1771039840303,-792.28,0.00031231,5]
[405348703,1771039840312,-500.0,0.00031231,5]
[405348704,1771039840321,-1127.21,0.00031231,5]
[405348705,1771039840330,-794.53,0.00031231,5]
[405348706,1771039840340,-500.0,0.00031231,5]
[405348707,1771039840350,-881.87,0.00031231,5]
[405348708,1771039840359,-500.0,0.00031232,5]
[405348709,1771039840368,-500.0,0.00031232,2]
[405348710,1771039840378,-183.40798466,0.00031373,2]
[405348711,1771039840387,-596.78080735,0.00031465,32]
[405348712,1771039840396,-500.0,0.00031504,5]
[405348713,1771039840405,-525.89,0.00031504,2]
[405348714,1771039840415,-3672.01,0.00031504,5]
[405348715,1771039840424,-500.0,0.00031505,5]
[405348716,1771039840433,-500.0,0.00031505,5]
[405348717,1771039840442,-792.28,0.00031505,5]
[405348718,1771039840451,-500.0,0.00031505,5]
[405348719,1771039840461,-1127.21,0.00031505,5]
[405348720,1771039840470,-794.53,0.00031505,5]
[405348721,1771039840479,-544.63655643,0.00031505,5]
[405348722,1771039840489,-881.87,0.00031505,5]
[405348723,1771039840498,-500.0,0.00031506,5]
[405348724,1771039840508,-500.0,0.00031506,2]
[405348725,1771039840517,-168.0,0.00031682,2]
[405348726,1771039840527,-500.0,0.00031778,5]
[405348727,1771039840536,-525.89,0.00031778,2]
[405348728,1771039840546,-3672.01,0.00031778,5]
[405348729,1771039840555,-500.0,0.00031779,5]
[405348730,1771039840564,-500.0,0.00031779,5]
[405348731,1771039840574,-792.28,0.00031779,5]
[405348732,1771039840583,-500.0,0.00031779,5]
[405348733,1771039840593,-1127.21,0.00031779,5]
[405348734,1771039840602,-794.53,0.00031779,5]
[405348735,1771039840612,-881.87,0.00031779,5]
[405348736,1771039840622,-500.0,0.0003178,5]
[405348737,1771039840631,-500.0,0.0003178,2]
[405348738,1771039840641,-596.78080735,0.00031797,40]
[405348739,1771039840650,-605.49,0.00031874,10]
[405348740,1771039840660,-504.58,0.00031874,10]
[405348741,1771039840670,-155279.70530982,0.00031884,2]
[405348759,1771039983069,607.8440393,0.00013273,2]
[405348763,1771040044693,640.82245812,0.00013699,2]
[405348764,1771040142640,295.157,0.00030136,120]
[405348766,1771040466692,150.0,0.00021918,2]
[405348767,1771040466757,444.52553021,0.00022466,2]
[405348769,1771040627249,153.996,0.00030136,120]
[405348770,1771040668615,3569.64891865,0.00023,2]
[405348771,1771040706520,296.31982207,0.00016438,2]
[405348772,1771040788785,5000.0,0.00023,2]
[405348774,1771040810502,5000.0,0.00023,2]
[405348775,1771040826440,5000.0,0.00023,2]
[405348776,1771040834268,5000.0,0.00023,2]
[405348777,1771040849000,5000.0,0.00023,2]
[405348778,1771040856848,1070.53024208,0.00023,2]
[405348779,1771040872216,5000.0,0.00023,2]
[405348780,1771040894901,5000.0,0.00023,2]
[405348781,1771040918205,5000.0,0.00023,2]
[405348782,1771040940386,5000.0,0.00023,2]
[405348783,1771040962885,5000.0,0.00023,2]
[405348784,1771040984903,5000.0,0.00023,2]
[405348785,1771041006894,5000.0,0.00023,2]
[405348786,1771041029949,2044.77308667,0.00023,2]
[405348905,1771041037995,-300.0,0.00023188,2]
[405348906,1771041038006,-1200.0,0.00023188,2]
[405348907,1771041038015,-23.70569834,0.00023188,2]
[405348908,1771041038027,-276.29430166,0.00023188,2]
[405348909,1771041038037,-420.0,0.00025167,2]
[405348910,1771041038047,-587.0,0.00027315,2]
[405348911,1771041038056,-756.62341332,0.00028416,2]
[405348912,1771041038068,-597.59381588,0.00028416,2]
[405348913,1771041038078,-319.97176148,0.00028584,2]
[405348914,1771041038087,-500.0,0.00028584,2]
[405348915,1771041038097,-500.0,0.00028584,2]
[405348916,1771041038107,-19345.7850454,0.00028585,2]
[405348917,1771041038117,-250.81446144,0.00028919,2]
[405348918,1771041038127,-363.857,0.00029245,2]
[405348919,1771041038137,-718.23911149,0.00029476,2]
[405348923,1771041044166,-24.76855305,0.00029476,2]
[405348924,1771041044176,-2762.61420516,0.00029546,2]
[405348925,1771041044186,-1575.57903491,0.00029644,2]
[405348930,1771041045948,-1187.03517021,0.00029644,2]
[405348931,1771041045958,-423.0,0.00029646,2]
[405348932,1771041045967,-2762.61420512,0.00029742,2]
[405348933,1771041045980,-292.7691753,0.0002984,2]
[405348934,1771041046004,-1062.83194324,0.0002984,2]
[405348935,1771041690191,153.3806662,0.00013699,2]
[405348936,1771041738658,-1554.0,0.00023969,2]
[405348937,1771042121759,3955.15818857,0.00023,2]
[405348959,1771042231991,-1040.90373914,0.00023257,2]
[405349091,1771042237179,1676.81813297,0.00023,2]
[405349243,1771042240414,-1200.0,0.00023291,2]
[405349245,1771042240423,-138.54114521,0.00023292,2]
[405349326,1771042244618,-254.04213527,0.00023292,2]
[405349327,1771042244628,-1895.28786473,0.00023292,2]
[405349356,1771042246055,-2193.8954729,0.00023292,2]
[405349357,1771042246218,-2704.51701398,0.00023292,2]
[405349358,1771042246228,-166.66666668,0.00023392,2]
[405349359,1771042246238,-500.0,0.00023726,2]
[405349360,1771042246248,-500.0,0.00023726,2]
[405349361,1771042246257,-500.0,0.00023726,2]
[405349362,1771042246267,-500.0,0.00023726,2]
[405349363,1771042246276,-500.0,0.00023726,2]
[405349364,1771042246286,-500.0,0.00023726,2]
[405349365,1771042246296,-500.0,0.00023726,2]
[405349366,1771042246305,-500.0,0.00023726,2]
[405349367,1771042246315,-507.70571504,0.00023726,2]
[405349368,1771042246325,-500.0,0.00023726,2]
[405349369,1771042246334,-438.52506559,0.00023726,2]
[405349370,1771042246344,-500.0,0.00023726,2]
[405349371,1771042246353,-500.0,0.00023726,2]
[405349372,1771042246363,-560.18633022,0.00023726,2]
[405349373,1771042246372,-883.5007444,0.00025393,2]
[405349374,1771042246384,-247.4992556,0.00025393,2]
[405349375,1771042246394,-781.5923142,0.00026421,2]
[405349376,1771042246404,-300.0,0.00027268,2]
[405349377,1771042246413,-6470.93937545,0.00028931,2]
[405349387,1771042433264,303.10001603,0.000189,2]
[405349388,1771042433338,303.10001611,0.00019089,2]
[405349389,1771042517641,153.29450675,0.00013273,2]
[405349395,1771043054432,545.46974473,0.0002,120]
[405349398,1771043298149,2146.82208013,0.000176,2]
[405349399,1771043308063,14332.71765574,0.00017,2]
[405349400,1771043310417,373.19169326,0.0002,2]
[405349401,1771043315606,15777.58710956,0.0002,2]
[405349402,1771043322106,15774.61410707,0.00021,2]
[405349403,1771043323483,13183.8572641,0.00019,2]
[405349442,1771043432261,-1350.22,0.00027,2]
[405349478,1771043438403,-2892.19855063,0.00027,2]
[405349480,1771043438413,-1326.0642741,0.00027087,2]
[405349482,1771043438423,-173.57,0.000271,2]
[405349484,1771043438432,-297.1252738,0.00027826,2]
[405349486,1771043438442,-213.9614477,0.00027914,2]
[405349488,1771043438452,-238.9256373,0.00028084,60]
[405349491,1771043438462,-208.47961352,0.00028831,2]
[405349492,1771043438471,-176.34,0.000289,2]
[405349495,1771043438481,-298.76477556,0.0002893,2]
[405349497,1771043438496,-1.23522444,0.0002893,2]
[405349499,1771043438506,-300.0,0.0002893,2]
[405349501,1771043438515,-300.0,0.0002893,2]
[405349503,1771043438524,-300.0,0.0002893,2]
[405349505,1771043438533,-776.38093545,0.00028931,2]
[405349507,1771043438545,-2605.3777532,0.00028931,2]
[405349509,1771043438555,-600.0,0.00029051,30]
[405349511,1771043438564,-3810.53030634,0.00029141,2]
[405349514,1771043438575,-4955.94658994,0.00029141,2]
[405349644,1771043440446,-1233.52310372,0.00029141,2]
[405349645,1771043440455,-3601.81995001,0.00029698,2]
[405349646,1771043440465,-1103.0,0.0003,7]
[405349647,1771043440474,-15776.35501674,0.0003,10]
[405349648,1771043440484,-814.30654995,0.0003013,10]
[405349649,1771043440496,-500.0,0.00030136,5]
[405349650,1771043440506,-500.0,0.00030136,2]
[405349651,1771043440515,-394.32052076,0.00030136,2]
[405349652,1771043440525,-500.0,0.00030136,5]
[405349654,1771043440534,-632.05,0.00030136,5]
[405349655,1771043440544,-500.0,0.00030136,5]
[405349656,1771043440553,-500.0,0.00030136,5]
[405349657,1771043440562,-500.0,0.00030136,5]
[405349658,1771043440572,-845.41,0.00030136,5]
[405349659,1771043440581,-595.89,0.00030136,5]
[405349660,1771043440591,-661.4,0.00030136,5]
[405349661,1771043440600,-500.0,0.00030136,5]
[405349662,1771043440610,-500.0,0.00030136,2]
[405349663,1771043440620,-2754.01,0.00030136,5]
[405349664,1771043440629,-500.0,0.00030136,2]
[405349665,1771043440638,-500.0,0.0003041,5]
[405349666,1771043440647,-500.0,0.0003041,2]
[405349667,1771043440656,-500.0,0.0003041,5]
[405349668,1771043440666,-632.05,0.0003041,5]
[405349669,1771043440676,-500.0,0.0003041,5]
[405349670,1771043440686,-500.0,0.0003041,5]
[405349671,1771043440695,-845.41,0.0003041,5]
[405349672,1771043440704,-595.89,0.0003041,5]
[405349673,1771043440714,-661.4,0.0003041,5]
[405349674,1771043440723,-500.0,0.0003041,5]
[405349675,1771043440732,-500.0,0.0003041,2]
[405349676,1771043440741,-2754.01,0.0003041,5]
[405349677,1771043440751,-500.0,0.0003041,2]
[405349678,1771043440761,-486.65,0.00030584,5]
[405349679,1771043440771,-413.0,0.00030627,3]
[405349680,1771043440780,-197.9158749,0.00030657,2]
[405349681,1771043440790,-355.89232625,0.00030657,2]
[405349682,1771043440799,-500.0,0.00030684,5]
[405349683,1771043440809,-500.0,0.00030684,2]
[405349684,1771043440819,-203.79546845,0.00030684,5]
[405349685,1771043440828,-500.0,0.00030684,5]
[405349686,1771043440840,-632.05,0.00030684,5]
[405349687,1771043440850,-500.0,0.00030684,5]
[405349688,1771043440859,-845.41,0.00030684,5]
[405349689,1771043440868,-595.89,0.00030684,5]
[405349690,1771043440878,-661.4,0.00030684,5]
[405349691,1771043440887,-500.0,0.00030684,5]
[405349692,1771043440897,-500.0,0.00030684,2]
[405349693,1771043440906,-2754.01,0.00030684,5]
[405349694,1771043440916,-500.0,0.00030684,2]
[405349695,1771043440925,-408.0,0.00030935,30]
[405349696,1771043440935,-271.0,0.00030935,30]
[405349697,1771043440945,-500.0,0.00030958,5]
[405349698,1771043440955,-500.0,0.00030958,2]
[405349699,1771043440964,-500.0,0.00030958,5]